bitfinex-derivatives/quotes_BTCF0:USTF0_20250720
["timestamp","ask_amount","ask_price","bid_price","bid_amount"]
[1752993513712,1.02029129,117910.0,117900.0,0.60453]
[1752993513907,0.1920794,117890.0,117880.0,1.06607985]
[1752993514111,0.41410508,117890.0,117880.0,1.06607985]
[1752993514609,0.41410508,117890.0,117880.0,1.02271843]
[1752993515213,0.41510508,117890.0,117880.0,1.02471843]
[1752993515413,0.41610508,117890.0,117880.0,1.02671843]
[1752993515712,0.41610508,117890.0,117880.0,0.44059843]
[1752993515913,0.41610508,117890.0,117880.0,1.02671843]
[1752993516310,0.41510508,117890.0,117880.0,1.02571843]
[1752993516509,0.41410508,117890.0,117880.0,1.02471843]
[1752993521221,0.2860394,117890.0,117880.0,1.02471843]
[1752993521424,0.41410508,117890.0,117880.0,1.02471843]
[1752993524622,0.41410508,117890.0,117880.0,1.04717843]
[1752993525625,0.2860394,117890.0,117880.0,1.04717843]
[1752993525817,0.41410508,117890.0,117880.0,1.04717843]
[1752993526324,0.2860394,117890.0,117880.0,1.04717843]
[1752993526525,0.41410508,117890.0,117880.0,1.04717843]
[1752993526720,0.2860394,117890.0,117880.0,1.04717843]
[1752993526921,0.41410508,117890.0,117880.0,1.17524411]
[1752993527228,0.41410508,117890.0,117880.0,1.04717843]
[1752993530225,0.41410508,117890.0,117880.0,1.17524411]
[1752993537327,0.41410508,117890.0,117880.0,1.04717843]
[1752993537527,0.41410508,117890.0,117880.0,1.17524411]
[1752993543130,0.41410508,117890.0,117880.0,0.81444411]
[1752993543338,0.41410508,117890.0,117880.0,1.17524411]
[1752993543935,0.41410508,117890.0,117880.0,0.81444411]
[1752993544135,0.41410508,117890.0,117880.0,1.17524411]
[1752993545130,0.41410508,117890.0,117880.0,0.81444411]
[1752993545330,0.41410508,117890.0,117880.0,1.17524411]
[1752993549438,0.41410508,117890.0,117880.0,1.04717843]
[1752993550237,0.41410508,117890.0,117880.0,1.17524411]
[1752993551338,0.41410508,117890.0,117880.0,1.04717843]
[1752993552737,0.41410508,117890.0,117880.0,0.68637843]
[1752993552936,0.41410508,117890.0,117880.0,1.04717843]
[1752993560943,0.41410508,117890.0,117880.0,0.68637843]
[1752993561235,0.41410508,117890.0,117880.0,1.04717843]
[1752993564542,0.2860394,117890.0,117880.0,1.04717843]
[1752993564743,0.41410508,117890.0,117880.0,1.04717843]
[1752993565952,0.54217076,117890.0,117880.0,0.68637843]
[1752993566147,0.79570597,117890.0,117880.0,0.66391843]
[1752993566746,0.77490508,117890.0,117880.0,0.66391843]
[1752993566946,0.79570335,117890.0,117880.0,0.66391843]
[1752993567847,0.79570335,117890.0,117880.0,0.66291843]
[1752993568146,0.79670335,117890.0,117880.0,0.66191843]
[1752993568446,0.79670335,117890.0,117880.0,0.68177843]
[1752993571247,0.77590508,117890.0,117880.0,0.68177843]
[1752993573349,0.41510508,117890.0,117880.0,0.68177843]
[1752993573650,0.77590508,117890.0,117880.0,0.68177843]
[1752993574750,0.41510508,117890.0,117880.0,0.68177843]
[1752993575049,0.77590508,117890.0,117880.0,0.68177843]
[1752993576755,0.41510508,117890.0,117880.0,0.68177843]
[1752993576958,0.77590508,117890.0,117880.0,0.68177843]
[1752993578058,0.41510508,117890.0,117880.0,0.68177843]
[1752993578352,0.77590508,117890.0,117880.0,0.68177843]
[1752993581256,0.77590508,117890.0,117880.0,0.66191843]
[1752993585761,0.41510508,117890.0,117880.0,0.66191843]
[1752993586064,0.77590508,117890.0,117880.0,0.66191843]
[1752993590268,0.7966928,117890.0,117880.0,0.66191843]
[1752993590774,0.77590508,117890.0,117880.0,0.66191843]
[1752993593874,1.36102508,117890.0,117880.0,0.66191843]
[1752993594868,1.2329594,117890.0,117880.0,0.66191843]
[1752993595073,1.36102508,117890.0,117880.0,0.66191843]
[1752993596373,1.00022508,117890.0,117880.0,0.66191843]
[1752993596572,1.36102508,117890.0,117880.0,0.66191843]
[1752993598371,1.2329594,117890.0,117880.0,0.66191843]
[1752993598572,1.36102508,117890.0,117880.0,0.66191843]
[1752993599775,1.00022508,117890.0,117880.0,0.66191843]
[1752993599976,1.36102508,117890.0,117880.0,0.66191843]
[1752993600278,1.2329594,117890.0,117880.0,0.66191843]
[1752993600572,1.36102508,117890.0,117880.0,0.66191843]
[1752993606979,1.00022508,117890.0,117880.0,0.66191843]
[1752993607178,1.36102508,117890.0,117880.0,0.66191843]
[1752993609079,1.00022508,117890.0,117880.0,0.66191843]
[1752993609379,1.36102508,117890.0,117880.0,0.66191843]
[1752993610580,1.2329594,117890.0,117880.0,0.66191843]
[1752993610777,1.36102508,117890.0,117880.0,0.66191843]
[1752993612085,1.00022508,117890.0,117880.0,0.66191843]
[1752993612287,1.36102508,117890.0,117880.0,0.66191843]
[1752993618393,1.00022508,117890.0,117880.0,0.66191843]
[1752993618596,1.36102508,117890.0,117880.0,0.66191843]
[1752993622403,1.00022508,117890.0,117880.0,0.66191843]
[1752993622595,1.36102508,117890.0,117880.0,0.66191843]
[1752993628400,1.00022508,117890.0,117880.0,0.66191843]
[1752993628700,1.36102508,117890.0,117880.0,0.66191843]
[1752993630804,1.38182288,117890.0,117880.0,0.66191843]
[1752993633404,1.02102288,117890.0,117880.0,0.66191843]
[1752993633704,1.38182288,117890.0,117880.0,0.66191843]
[1752993638110,1.2537572,117890.0,117880.0,0.66191843]
[1752993638311,1.38182288,117890.0,117880.0,0.66191843]
[1752993640810,1.36102508,117890.0,117880.0,0.66191843]
[1752993641714,1.00022508,117890.0,117880.0,0.66191843]
[1752993641901,1.36102508,117890.0,117880.0,0.66191843]
[1752993642512,1.38182306,117890.0,117880.0,0.66191843]
[1752993646118,1.02102306,117890.0,117880.0,0.66191843]
[1752993646309,1.38182306,117890.0,117880.0,0.66191843]
[1752993649418,1.02102306,117890.0,117880.0,0.66191843]
[1752993649717,1.38182306,117890.0,117880.0,0.66191843]
[1752993651012,1.36102508,117890.0,117880.0,0.66191843]
[1752993658724,1.36102508,117890.0,117880.0,0.78998411]
[1752993659726,1.36102508,117890.0,117880.0,0.66191843]
[1752993660224,1.2329594,117890.0,117880.0,0.66191843]
[1752993660420,1.36102508,117890.0,117880.0,0.66191843]
[1752993664427,1.00022508,117890.0,117880.0,0.66191843]
[1752993664627,1.36102508,117890.0,117880.0,0.66191843]
[1752993665428,1.00022508,117890.0,117880.0,0.66191843]
[1752993665622,1.36102508,117890.0,117880.0,0.66191843]
[1752993666126,1.2329594,117890.0,117880.0,0.66191843]
[1752993666327,1.36102508,117890.0,117880.0,0.66191843]
[1752993670341,1.36102508,117890.0,117880.0,0.83149203]
[1752993670842,1.36102508,117890.0,117880.0,0.66191843]
[1752993672344,0.77590508,117890.0,117880.0,0.95955781]
[1752993672545,0.41510508,117890.0,117880.0,1.46484349]
[1752993672845,0.2870394,117890.0,117880.0,1.46484349]
[1752993673047,0.001,117890.0,117880.0,1.83484349]
[1752993673233,0.1705593,117890.0,117880.0,1.83484349]
[1752993673435,0.1705593,117890.0,117880.0,1.46484349]
[1752993673741,0.1695593,117890.0,117880.0,1.46684349]
[1752993674245,0.1695593,117890.0,117880.0,1.46584349]
[1752993674548,0.1705593,117890.0,117880.0,1.46784349]
[1752993674740,0.1705593,117890.0,117880.0,1.54518566]
[1752993674940,0.1715593,117890.0,117880.0,1.54518566]
[1752993675947,0.1715593,117890.0,117880.0,1.46884349]
[1752993676544,0.30846516,117910.0,117900.0,0.10143]
[1752993676742,0.30846516,117910.0,117900.0,1.23241852]
[1752993676942,0.30846516,117910.0,117900.0,1.3604842]
[1752993677146,0.30846516,117910.0,117900.0,1.48854988]
[1752993677650,0.24204516,117910.0,117900.0,1.23241852]
[1752993677949,0.24204516,117910.0,117900.0,1.48854988]
[1752993678344,0.24304516,117910.0,117900.0,1.48854988]
[1752993678549,0.25231516,117910.0,117900.0,1.48854988]
[1752993679044,0.25231516,117910.0,117900.0,1.23241852]
[1752993679248,0.30881516,117910.0,117900.0,1.48854988]
[1752993680047,0.30881516,117910.0,117900.0,1.23241852]
[1752993680248,0.30881516,117910.0,117900.0,1.48854988]
[1752993682550,0.30881516,117910.0,117900.0,1.23241852]
[1752993682751,0.30881516,117910.0,117900.0,1.48854988]
[1752993683050,0.32986516,117910.0,117900.0,1.48854988]
[1752993684654,0.32986516,117910.0,117900.0,0.90486988]
[1752993684847,0.32986516,117910.0,117900.0,1.48842988]
[1752993685152,0.32986516,117910.0,117900.0,1.23229852]
[1752993685354,0.32986516,117910.0,117900.0,1.48842988]
[1752993686955,0.35154516,117910.0,117900.0,1.48842988]
[1752993687851,0.25231516,117910.0,117900.0,1.48842988]
[1752993688050,0.20993006,117910.0,117900.0,1.48842988]
[1752993688453,0.23410006,117910.0,117900.0,1.48842988]
[1752993688856,0.26454006,117910.0,117900.0,1.48842988]
[1752993690855,0.30542006,117910.0,117900.0,1.48842988]
[1752993691657,0.30542006,117910.0,117900.0,1.23229852]
[1752993691852,0.30542006,117910.0,117900.0,1.48842988]
[1752993692557,0.30542006,117910.0,117900.0,1.23229852]
[1752993692761,0.30542006,117910.0,117900.0,1.48842988]
[1752993694052,0.30542006,117910.0,117900.0,1.12762988]
[1752993694258,0.30542006,117910.0,117900.0,1.48842988]
[1752993696153,0.30542006,117910.0,117900.0,0.90486988]
[1752993696353,0.30542006,117910.0,117900.0,1.48834988]
[1752993698466,0.30542006,117910.0,117900.0,1.23221852]
[1752993698763,0.30542006,117910.0,117900.0,1.48834988]
[1752993699167,0.30542006,117910.0,117900.0,1.23221852]
[1752993699365,0.30542006,117910.0,117900.0,1.48834988]
[1752993706068,0.30542006,117910.0,117900.0,1.12754988]
[1752993706270,0.30542006,117910.0,117900.0,1.48834988]
[1752993706670,0.30542006,117910.0,117900.0,1.23221852]
[1752993706869,0.30542006,117910.0,117900.0,1.48834988]
[1752993708365,0.30542006,117910.0,117900.0,1.23221852]
[1752993708568,0.43348574,117910.0,117900.0,1.48834988]
[1752993708967,0.30542006,117910.0,117900.0,1.48834988]
[1752993709172,0.43348574,117910.0,117900.0,1.48834988]
[1752993712874,0.43348574,117910.0,117900.0,1.12754988]
[1752993713076,0.43348574,117910.0,117900.0,1.48834988]
[1752993715179,0.30542006,117910.0,117900.0,1.48834988]
[1752993715677,0.30542006,117910.0,117900.0,1.56468074]
[1752993717078,0.43348574,117910.0,117900.0,1.43069506]
[1752993717780,0.43348574,117910.0,117900.0,1.3543642]
[1752993722281,0.43348574,117910.0,117900.0,1.43069506]
[1752993722482,0.43348574,117910.0,117900.0,1.55876074]
[1752993722786,0.43348574,117910.0,117900.0,1.48242988]
[1752993723183,0.30542006,117910.0,117900.0,1.48242988]
[1752993723380,0.30542006,117910.0,117900.0,1.48794988]
[1752993723680,0.30542006,117910.0,117900.0,1.12714988]
[1752993723985,0.30542006,117910.0,117900.0,1.48794988]
[1752993724585,0.30542006,117910.0,117900.0,1.56428074]
[1752993725789,0.43348574,117910.0,117900.0,1.56428074]
[1752993731493,0.30542006,117910.0,117900.0,1.56428074]
[1752993731691,0.43348574,117910.0,117900.0,1.56428074]
[1752993735499,0.30542006,117910.0,117900.0,1.56428074]
[1752993735699,0.43348574,117910.0,117900.0,1.56428074]
[1752993737700,0.43348574,117910.0,117900.0,1.20348074]
[1752993737900,0.43348574,117910.0,117900.0,1.56428074]
[1752993740701,0.30542006,117910.0,117900.0,1.56428074]
[1752993741701,0.43348574,117910.0,117900.0,1.56428074]
[1752993742001,0.30542006,117910.0,117900.0,1.56428074]
[1752993742202,0.43348574,117910.0,117900.0,1.56428074]
[1752993744109,0.30542006,117910.0,117900.0,1.56428074]
[1752993744310,0.43348574,117910.0,117900.0,1.56428074]
[1752993745108,0.30542006,117910.0,117900.0,1.56428074]
[1752993745306,0.43348574,117910.0,117900.0,1.56428074]
[1752993750510,0.30542006,117910.0,117900.0,1.56428074]
[1752993750710,0.43348574,117910.0,117900.0,1.56428074]
[1752993753313,0.43348574,117910.0,117900.0,1.30814938]
[1752993753515,0.43348574,117910.0,117900.0,1.43621506]
[1752993753815,0.43348574,117910.0,117900.0,1.56428074]
[1752993754315,0.43348574,117910.0,117900.0,1.43621506]
[1752993754715,0.43348574,117910.0,117900.0,1.30814938]
[1752993754912,0.43348574,117910.0,117900.0,1.43621506]
[1752993755718,0.30542006,117910.0,117900.0,1.43621506]
[1752993756118,0.43348574,117910.0,117900.0,1.43621506]
[1752993756318,0.30542006,117910.0,117900.0,1.43621506]
[1752993756617,0.43348574,117910.0,117900.0,1.43621506]
[1752993756919,0.43348574,117910.0,117900.0,1.30814938]
[1752993757218,0.43348574,117910.0,117900.0,1.43621506]
[1752993757519,0.30542006,117910.0,117900.0,1.43621506]
[1752993757716,0.43348574,117910.0,117900.0,1.43621506]
[1752993758115,0.43348574,117910.0,117900.0,1.56428074]
[1752993761326,0.30542006,117910.0,117900.0,1.56428074]
[1752993761517,0.43348574,117910.0,117900.0,1.56428074]
[1752993764221,0.30542006,117910.0,117900.0,1.56428074]
[1752993764423,0.43348574,117910.0,117900.0,1.56428074]
[1752993764822,0.30542006,117910.0,117900.0,1.56428074]
[1752993765022,0.43348574,117910.0,117900.0,1.56428074]
[1752993767427,0.30542006,117910.0,117900.0,1.56428074]
[1752993767725,0.43348574,117910.0,117900.0,1.56428074]
[1752993768026,0.43348574,117910.0,117900.0,1.30814938]
[1752993768227,0.43348574,117910.0,117900.0,1.56428074]
[1752993769929,0.30542006,117910.0,117900.0,1.56428074]
[1752993770130,0.43348574,117910.0,117900.0,1.56428074]
[1752993771529,0.43348574,117910.0,117900.0,1.30814938]
[1752993771731,0.43348574,117910.0,117900.0,1.56428074]
[1752993773132,0.43348574,117910.0,117900.0,1.20348074]
[1752993773333,0.43348574,117910.0,117900.0,1.56428074]
[1752993773933,0.43348574,117910.0,117900.0,1.30814938]
[1752993774135,0.43348574,117910.0,117900.0,1.56428074]
[1752993774837,0.45258286,117910.0,117900.0,1.30814938]
[1752993775133,0.45258286,117910.0,117900.0,1.56428074]
[1752993775839,0.32451718,117910.0,117900.0,1.56428074]
[1752993776027,0.45258286,117910.0,117900.0,1.56428074]
[1752993776337,0.45258286,117910.0,117900.0,1.43621506]
[1752993778738,0.45258286,117910.0,117900.0,1.07541506]
[1752993778939,0.45258286,117910.0,117900.0,1.43621506]
[1752993780840,0.45258286,117910.0,117900.0,1.30814938]
[1752993781032,0.45258286,117910.0,117900.0,1.43621506]
[1752993783040,0.32451718,117910.0,117900.0,1.43621506]
[1752993783338,0.45258286,117910.0,117900.0,1.43621506]
[1752993787140,0.45258286,117910.0,117900.0,1.30814938]
[1752993787333,0.45258286,117910.0,117900.0,1.43621506]
[1752993791147,0.45258286,117910.0,117900.0,1.30814938]
[1752993791442,0.45258286,117910.0,117900.0,1.43621506]
[1752993791843,0.45258286,117910.0,117900.0,1.07541506]
[1752993792142,0.45258286,117910.0,117900.0,1.43621506]
[1752993792443,0.45258286,117910.0,117900.0,1.07541506]
[1752993792747,0.45258286,117910.0,117900.0,1.43621506]
[1752993794444,0.45258286,117910.0,117900.0,1.07541506]
[1752993794745,0.32451718,117910.0,117900.0,1.43621506]
[1752993794939,0.45258286,117910.0,117900.0,1.43621506]
[1752993797434,0.45258286,117910.0,117900.0,1.07541506]
[1752993797636,0.45258286,117910.0,117900.0,1.43614371]
[1752993800857,0.45258286,117910.0,117900.0,1.07534371]
[1752993801049,0.45258286,117910.0,117900.0,1.43614371]
[1752993802657,0.30542006,117910.0,117900.0,1.43614371]
[1752993803054,0.43348574,117910.0,117900.0,1.43614371]
[1752993803557,0.43348574,117910.0,117900.0,1.56420939]
[1752993805459,0.30542006,117910.0,117900.0,1.56420939]
[1752993805755,0.43348574,117910.0,117900.0,1.56420939]
[1752993808264,0.30542006,117910.0,117900.0,1.56420939]
[1752993808566,0.43348574,117910.0,117900.0,1.43614371]
[1752993808765,0.43348574,117910.0,117900.0,1.56420939]
[1752993809568,0.43348574,117910.0,117900.0,1.43614371]
[1752993810068,0.30542006,117910.0,117900.0,1.43614371]
[1752993810270,0.43348574,117910.0,117900.0,1.35981285]
[1752993811861,0.43348574,117910.0,117900.0,1.48787853]
[1752993812862,0.43348574,117910.0,117900.0,1.12707853]
[1752993813069,0.43348574,117910.0,117900.0,1.23174717]
[1752993813266,0.43348574,117910.0,117900.0,1.48787853]
[1752993815973,0.43348574,117910.0,117900.0,1.43614371]
[1752993818066,0.30542006,117910.0,117900.0,1.43614371]
[1752993818269,0.43348574,117910.0,117900.0,1.43614371]
[1752993819773,0.30542006,117910.0,117900.0,1.43614371]
[1752993820271,0.43348574,117910.0,117900.0,1.43614371]
[1752993824376,0.43348574,117910.0,117900.0,1.30807803]
[1752993824576,0.30542006,117910.0,117900.0,1.43614371]
[1752993824765,0.43348574,117910.0,117900.0,1.43614371]
[1752993824965,0.43348574,117910.0,117900.0,1.07534371]
[1752993825170,0.43348574,117910.0,117900.0,1.43614371]
[1752993825679,0.43348574,117910.0,117900.0,1.07534371]
[1752993825872,0.43348574,117910.0,117900.0,1.43614371]
[1752993827977,0.43348574,117910.0,117900.0,1.07534371]
[1752993828180,0.43348574,117910.0,117900.0,1.43614371]
[1752993830371,0.43348574,117910.0,117900.0,1.30807803]
[1752993830572,0.43348574,117910.0,117900.0,1.43614371]
[1752993831680,0.43348574,117910.0,117900.0,1.30807803]
[1752993831873,0.43348574,117910.0,117900.0,1.43614371]
[1752993832382,0.30542006,117910.0,117900.0,1.43614371]
[1752993832581,0.43348574,117910.0,117900.0,1.43614371]
[1752993835983,0.43348574,117910.0,117900.0,1.07534371]
[1752993836179,0.43348574,117910.0,117900.0,1.43614371]
[1752993837583,0.30542006,117910.0,117900.0,1.43614371]
[1752993837786,0.43348574,117910.0,117900.0,1.43614371]
[1752993837983,0.43348574,117910.0,117900.0,1.30807803]
[1752993838183,0.43348574,117910.0,117900.0,1.43614371]
[1752993838586,0.43348574,117910.0,117900.0,1.56420939]
[1752993841587,0.43348574,117910.0,117900.0,1.43614371]
[1752993843384,0.43348574,117910.0,117900.0,1.07534371]
[1752993843585,0.43348574,117910.0,117900.0,1.43614371]
[1752993844084,0.43348574,117910.0,117900.0,1.07534371]
[1752993844288,0.43348574,117910.0,117900.0,1.43614371]
[1752993844985,0.43348574,117910.0,117900.0,1.30807803]
[1752993845285,0.43348574,117910.0,117900.0,1.43614371]
[1752993845885,0.43348574,117910.0,117900.0,1.07534371]
[1752993846088,0.43348574,117910.0,117900.0,1.43614371]
[1752993846386,0.43348574,117910.0,117900.0,0.85266371]
[1752993846586,0.43348574,117910.0,117900.0,1.43478371]
[1752993847791,0.43348574,117910.0,117900.0,1.07398371]
[1752993847988,0.43348574,117910.0,117900.0,1.43478371]
[1752993848789,0.43348574,117910.0,117900.0,1.07398371]
[1752993848989,0.43348574,117910.0,117900.0,1.43478371]
[1752993851496,0.30542006,117910.0,117900.0,1.43478371]
[1752993851698,0.43348574,117910.0,117900.0,1.43478371]
[1752993852498,0.30542006,117910.0,117900.0,1.43478371]
[1752993852695,0.43348574,117910.0,117900.0,1.43478371]
[1752993854898,0.43348574,117910.0,117900.0,1.07398371]
[1752993855197,0.43348574,117910.0,117900.0,1.43478371]
[1752993855497,0.43348574,117910.0,117900.0,1.30671803]
[1752993855802,0.43348574,117910.0,117900.0,1.43478371]
[1752993856497,0.30542006,117910.0,117900.0,1.43478371]
[1752993856799,0.43348574,117910.0,117900.0,1.56284939]
[1752993872707,0.30542006,117910.0,117900.0,1.56284939]
[1752993887814,0.20066006,117910.0,117900.0,1.56284939]
[1752993888411,0.20896006,117910.0,117900.0,1.56284939]
[1752993889823,0.20896006,117910.0,117900.0,1.30671803]
[1752993890025,0.23819006,117910.0,117900.0,1.56284939]
[1752993891924,0.26260006,117910.0,117900.0,1.56284939]
[1752993894421,0.26260006,117910.0,117900.0,1.20204939]
[1752993894626,0.20896006,117910.0,117900.0,1.56284939]
[1752993895528,0.20896006,117910.0,117900.0,1.30671803]
[1752993895727,0.23636006,117910.0,117900.0,1.56284939]
[1752993896128,0.20066006,117910.0,117900.0,1.56284939]
[1752993896726,0.001,117910.0,117900.0,1.56284939]
[1752993896929,0.001,117910.0,117900.0,1.48651853]
[1752993898031,0.2631072,117920.0,117910.0,0.2071006]
[1752993898232,0.41857288,117920.0,117910.0,0.75098628]
[1752993898729,0.44296288,117920.0,117910.0,0.75098628]
[1752993899331,0.44296288,117920.0,117910.0,0.75298628]
[1752993899529,0.3148972,117920.0,117910.0,0.75298628]
[1752993899833,0.3148972,117920.0,117910.0,0.75398628]
[1752993901132,0.44296288,117920.0,117910.0,0.75398628]
[1752993902635,0.44296288,117920.0,117910.0,0.83031714]
[1752993903445,0.46239288,117920.0,117910.0,0.83031714]
[1752993903640,0.48083288,117920.0,117910.0,0.83031714]
[1752993906047,0.48083288,117920.0,117910.0,0.75398628]
[1752993909448,0.48083288,117920.0,117910.0,0.39318628]
[1752993909643,0.48083288,117920.0,117910.0,0.75398628]
[1752993910551,0.3527672,117920.0,117910.0,0.83031714]
[1752993911246,0.3527672,117920.0,117910.0,0.75398628]
[1752993911445,0.48083288,117920.0,117910.0,0.6259206]
[1752993911641,0.48083288,117920.0,117910.0,0.75398628]
[1752993912452,0.48083288,117920.0,117910.0,0.6259206]
[1752993912651,0.48083288,117920.0,117910.0,0.75398628]
[1752993916450,0.3527672,117920.0,117910.0,0.75398628]
[1752993916654,0.48083288,117920.0,117910.0,0.75398628]
[1752993917653,0.48083288,117920.0,117910.0,0.77093851]
[1752993919552,0.3527672,117920.0,117910.0,0.77093851]
[1752993919858,0.48083288,117920.0,117910.0,0.77093851]
[1752993920456,0.48083288,117920.0,117910.0,0.41013851]
[1752993920655,0.48083288,117920.0,117910.0,0.77093851]
[1752993921556,0.48083288,117920.0,117910.0,0.84726937]
[1752993922359,0.3527672,117920.0,117910.0,0.84726937]
[1752993925962,0.3527672,117920.0,117910.0,0.48646937]
[1752993926155,0.3527672,117920.0,117910.0,0.84726937]
[1752993931768,0.3527672,117920.0,117910.0,0.71920369]
[1752993931967,0.3527672,117920.0,117910.0,0.84726937]
[1752993933068,0.3527672,117920.0,117910.0,0.71920369]
[1752993933368,0.3527672,117920.0,117910.0,0.84726937]
[1752993935970,0.00882,117920.0,117910.0,0.97533505]
[1752993936171,0.3438069,117930.0,117920.0,0.2080962]
[1752993936373,0.3524069,117930.0,117920.0,1.46129756]
[1752993937472,0.3534069,117930.0,117920.0,1.46129756]
[1752993938174,0.3534069,117930.0,117920.0,1.46229756]
[1752993938175,0.2686537,117930.0,117920.0,1.46229756]
[1752993939173,0.09914,117930.0,117920.0,1.53862842]
[1752993939469,0.2686419,117930.0,117920.0,1.53862842]
[1752993944382,0.2686419,117930.0,117920.0,1.89942842]
[1752993944579,0.2686419,117930.0,117920.0,1.82309756]
[1752993944879,0.2686419,117930.0,117920.0,1.10149756]
[1752993945082,0.2686419,117930.0,117920.0,1.82309756]
[1752993945480,0.2686419,117930.0,117920.0,1.89942842]
[1752993948682,0.2686419,117930.0,117920.0,1.64329706]
[1752993948884,0.2686419,117930.0,117920.0,1.89942842]
[1752993949182,0.09914,117930.0,117920.0,1.89942842]
[1752993949580,0.06509,117930.0,117920.0,1.89942842]
[1752993951185,0.0096,117930.0,117920.0,1.89942842]
[1752993951385,0.001,117930.0,117920.0,1.89942842]
[1752993951586,0.001,117930.0,117920.0,1.82309756]
[1752993951987,0.0096,117930.0,117920.0,1.82309756]
[1752993953485,0.0096,117930.0,117920.0,1.89942842]
[1752993953787,0.0096,117930.0,117920.0,1.82309756]
[1752993954983,0.0096,117930.0,117920.0,1.89942842]
[1752993955484,0.0096,117930.0,117920.0,1.82309756]
[1752993958792,0.001,117930.0,117920.0,1.82309756]
[1752993960793,0.00926,117930.0,117920.0,1.82309756]
[1752993963394,0.001,117930.0,117920.0,1.82309756]
[1752993963590,0.001,117930.0,117920.0,1.89942842]
[1752993964093,0.00926,117930.0,117920.0,1.89942842]
[1752993971804,0.00926,117930.0,117920.0,1.64329706]
[1752993972004,0.00926,117930.0,117920.0,1.89942842]
[1752993972198,0.001,117930.0,117920.0,1.89942842]
[1752993973503,0.001,117930.0,117920.0,1.64329706]
[1752993973705,0.001,117930.0,117920.0,1.89942842]
[1752993980006,0.00926,117930.0,117920.0,1.89942842]
[1752993986006,0.00926,117930.0,117920.0,1.82309756]
[1752993987010,0.001,117930.0,117920.0,1.89938429]
[1752993991313,0.001,117930.0,117920.0,1.82309756]
[1752993992913,0.001,117930.0,117920.0,1.46229756]
[1752993993118,0.001,117930.0,117920.0,1.82309756]
[1752993994620,0.001,117930.0,117920.0,1.89937617]
[1752993994917,0.001,117930.0,117920.0,1.82309756]
[1752993997017,0.00891,117930.0,117920.0,1.82309756]
[1752994001324,0.00891,117930.0,117920.0,1.89937193]
[1752994003128,0.2051219,117930.0,117920.0,1.89937193]
[1752994003627,0.2277619,117930.0,117920.0,1.89937193]
[1752994004025,0.2277619,117930.0,117920.0,1.64324057]
[1752994004326,0.39241758,117930.0,117920.0,1.89937193]
[1752994004930,0.2643519,117930.0,117920.0,1.89937193]
[1752994007932,0.2643519,117930.0,117920.0,1.17777193]
[1752994008232,0.2643519,117930.0,117920.0,1.89937193]
[1752994008431,0.2475419,117930.0,117920.0,1.89937193]
[1752994008932,0.07804,117930.0,117920.0,1.89937193]
[1752994009134,0.06242,117930.0,117920.0,1.89937193]
[1752994009931,0.05826,117930.0,117920.0,1.89937193]
[1752994010332,0.00891,117930.0,117920.0,1.89937193]
[1752994016040,0.00891,117930.0,117920.0,1.92996077]
[1752994016233,0.00891,117930.0,117920.0,2.00623791]
[1752994016536,0.00891,117930.0,117920.0,1.8993747]
[1752994022441,0.00891,117930.0,117920.0,1.64324334]
[1752994022637,0.00891,117930.0,117920.0,1.8993747]
[1752994023737,0.04935,117940.0,117920.0,1.8993747]
[1752994023936,0.0942,117940.0,117930.0,0.74873758]
[1752994024143,0.0942,117940.0,117930.0,0.7656156]
[1752994024540,0.22226568,117940.0,117930.0,0.7656156]
[1752994025139,0.2316547,117950.0,117940.0,0.2598576]
[1752994025344,0.2316547,117950.0,117940.0,1.45734896]
[1752994025643,0.2648847,117950.0,117940.0,1.45734896]
[1752994026043,0.39295038,117950.0,117940.0,1.45734896]
[1752994026445,0.39595038,117950.0,117940.0,1.45834896]
[1752994026646,0.39795038,117950.0,117940.0,1.45834896]
[1752994026946,0.2698847,117950.0,117940.0,1.45834896]
[1752994027144,0.39795038,117950.0,117940.0,1.45834896]
[1752994028047,0.39795038,117950.0,117940.0,1.52566119]
[1752994028345,0.39795038,117950.0,117940.0,1.52326119]
[1752994028847,0.39795038,117950.0,117940.0,1.17318413]
[1752994029148,0.39795038,117950.0,117940.0,1.40591845]
[1752994033848,0.2698847,117950.0,117940.0,1.40591845]
[1752994034148,0.39795038,117950.0,117940.0,1.40591845]
[1752994035851,0.2698847,117950.0,117940.0,1.40591845]
[1752994036047,0.39795038,117950.0,117940.0,1.40591845]
[1752994036448,0.39795038,117950.0,117940.0,1.53398413]
[1752994036646,0.2698847,117950.0,117940.0,1.53398413]
[1752994036848,0.39795038,117950.0,117940.0,1.53398413]
[1752994037445,0.39795038,117950.0,117940.0,1.17318413]
[1752994037650,0.39795038,117950.0,117940.0,1.53398413]
[1752994040957,0.2698847,117950.0,117940.0,1.53398413]
[1752994041547,0.28989882,117950.0,117940.0,1.53398413]
[1752994044164,0.2698847,117950.0,117940.0,1.53398413]
[1752994045558,0.28989791,117950.0,117940.0,1.53398413]
[1752994045752,0.2698847,117950.0,117940.0,1.53398413]
[1752994045953,0.41796347,117950.0,117940.0,1.40591845]
[1752994046157,0.41796347,117950.0,117940.0,1.53398413]
[1752994046360,0.28989779,117950.0,117940.0,1.53398413]
[1752994046658,0.2698847,117950.0,117940.0,1.53398413]
[1752994053866,0.39795038,117950.0,117940.0,1.53398413]
[1752994055566,0.2698847,117950.0,117940.0,1.53398413]
[1752994055763,0.2698847,117950.0,117940.0,1.40591845]
[1752994056568,0.39795038,117950.0,117940.0,1.76671845]
[1752994059368,0.2698847,117950.0,117940.0,1.76671845]
[1752994059666,0.39795038,117950.0,117940.0,1.76671845]
[1752994061368,0.39795038,117950.0,117940.0,1.89478413]
[1752994062969,0.39795038,117950.0,117940.0,1.63865277]
[1752994063169,0.39795038,117950.0,117940.0,1.89478413]
[1752994063772,0.2698847,117950.0,117940.0,1.89478413]
[1752994063972,0.39795038,117950.0,117940.0,1.89478413]
[1752994065075,0.39795038,117950.0,117940.0,1.53398413]
[1752994066377,0.2698847,117950.0,117940.0,1.53398413]
[1752994066779,0.2698847,117950.0,117940.0,1.27785277]
[1752994066977,0.2698847,117950.0,117940.0,1.53398413]
[1752994067174,0.39795038,117950.0,117940.0,1.53398413]
[1752994068472,0.39795038,117950.0,117940.0,1.27785277]
[1752994068877,0.39795038,117950.0,117940.0,1.53398413]
[1752994069076,0.2698847,117950.0,117940.0,1.53398413]
[1752994071979,0.2698847,117950.0,117940.0,1.27785277]
[1752994072179,0.2698847,117950.0,117940.0,1.53398413]
[1752994072880,0.2698847,117950.0,117940.0,1.17318413]
[1752994073081,0.2698847,117950.0,117940.0,1.53398413]
[1752994073281,0.39795038,117950.0,117940.0,1.53398413]
[1752994073682,0.39795038,117950.0,117940.0,1.17318413]
[1752994073877,0.39795038,117950.0,117940.0,1.53398413]
[1752994075484,0.2698847,117950.0,117940.0,1.53398413]
[1752994080385,0.2698847,117950.0,117940.0,1.40591845]
[1752994082386,0.39795038,117950.0,117940.0,1.40591845]
[1752994085286,0.39795038,117950.0,117940.0,1.27785277]
[1752994085493,0.39795038,117950.0,117940.0,1.40591845]
[1752994086789,0.39795038,117950.0,117940.0,1.04511845]
[1752994087091,0.39795038,117950.0,117940.0,1.40591845]